fUST/lending_fUST_20240603
["ID","MTS","AMOUNT","RATE_DAILY","PERIOD"]
[328474107,1717426235601,-160.45,0.000277,3]
[328474109,1717426235612,-160.45,0.000277,3]
[328474111,1717426235622,-160.45,0.000277,3]
[328474113,1717426235632,-160.45,0.000277,3]
[328474115,1717426235641,-160.45,0.000277,3]
[328474117,1717426235652,-160.45,0.000277,3]
[328474119,1717426235661,-160.45,0.000277,3]
[328474121,1717426235671,-160.45,0.000277,3]
[328474123,1717426235680,-160.45,0.000277,3]
[328474125,1717426235690,-160.45,0.000277,3]
[328474127,1717426235699,-160.45,0.000277,3]
[328474129,1717426235708,-160.45,0.000277,3]
[328474131,1717426235718,-160.45,0.000277,3]
[328474133,1717426235727,-160.45,0.000277,3]
[328474135,1717426235736,-160.45,0.000277,3]
[328474137,1717426235746,-160.45,0.000277,3]
[328474139,1717426235755,-3441.47,0.0002772,3]
[328474141,1717426235764,-22693.71601435,0.0002773,3]
[328474465,1717426238938,-41567.6,0.0002773,3]
[328474526,1717426239435,-3572.31294411,0.0002773,3]
[328474528,1717426239447,-21054.37104154,0.0002773,3]
[328474530,1717426239457,-158.56739487,0.00027803,2]
[328474532,1717426239466,-156.60292508,0.00027828,2]
[328474534,1717426239475,-1325.4519517,0.00027828,2]
[328474536,1717426239484,-1099.5217014,0.00027828,2]
[328474538,1717426239493,-500.0,0.00027829,2]
[328474540,1717426239502,-500.0,0.00027829,2]
[328474542,1717426239511,-500.0,0.00027829,2]
[328474544,1717426239520,-500.0,0.00027829,2]
[328474546,1717426239529,-500.0,0.00027829,2]
[328474548,1717426239539,-444.80454235,0.00027829,2]
[328474550,1717426239548,-500.0,0.00027829,2]
[328474552,1717426239558,-500.0,0.00027829,2]
[328474554,1717426239567,-456.25267272,0.00027829,2]
[328474556,1717426239581,-386.90651978,0.00027829,2]
[328474558,1717426239589,-500.0,0.00027829,2]
[328474560,1717426239599,-341.05982808,0.00027829,2]
[328474562,1717426239608,-628.49826253,0.00027829,2]
[328474564,1717426239621,-449.42571696,0.00027829,2]
[328474566,1717426239631,-406.6139078,0.00027829,2]
[328474568,1717426239641,-500.0,0.00027829,2]
[328474570,1717426239651,-500.0,0.00027829,2]
[328474571,1717426239661,-500.0,0.00027829,2]
[328474573,1717426239671,-500.0,0.00027829,2]
[328474575,1717426239680,-500.0,0.00027829,2]
[328474577,1717426239689,-500.0,0.00027829,2]
[328474579,1717426239699,-105.58226462,0.00027829,2]
[328474582,1717426239711,-394.41773538,0.00027829,2]
[328474584,1717426239721,-500.0,0.00027829,2]
[328474586,1717426239730,-500.0,0.00027829,2]
[328474588,1717426239739,-500.0,0.00027829,2]
[328474590,1717426239748,-3243.42981189,0.0002783,7]
[328474592,1717426239758,-124500.0,0.0002783,6]
[328474594,1717426239767,-151.0,0.0002783,2]
[328474596,1717426239776,-151.0,0.0002783,2]
[328474598,1717426239786,-151.0,0.0002783,2]
[328474600,1717426239796,-151.0,0.0002783,2]
[328474602,1717426239806,-151.896778,0.0002783,2]
[328474604,1717426239815,-151.0,0.0002783,2]
[328474605,1717426239824,-151.0,0.0002783,2]
[328474607,1717426239834,-274.985881,0.0002783,2]
[328474609,1717426239843,-151.0,0.0002783,2]
[328474612,1717426239853,-274.985881,0.0002783,2]
[328474614,1717426239862,-151.0,0.0002783,2]
[328474616,1717426239875,-151.0,0.0002783,2]
[328474618,1717426239884,-151.0,0.0002783,2]
[328474620,1717426239893,-151.0,0.0002783,2]
[328474621,1717426239903,-151.0,0.0002783,2]
[328474623,1717426239912,-151.0,0.0002783,2]
[328474626,1717426239922,-151.0,0.0002783,2]
[328474627,1717426239931,-309.425596,0.0002783,2]
[328474630,1717426239940,-151.0,0.0002783,2]
[328474632,1717426239950,-309.425596,0.0002783,2]
[328474633,1717426239960,-151.0,0.0002783,2]
[328474636,1717426239970,-160.499745,0.0002783,2]
[328474638,1717426239980,-160.499745,0.0002783,2]
[328474639,1717426239989,-151.0,0.0002783,2]
[328474641,1717426239999,-151.0,0.0002783,2]
[328474643,1717426240008,-740.356563,0.0002783,2]
[328474645,1717426240017,-272.373144,0.0002783,2]
[328474648,1717426240026,-272.373144,0.0002783,2]
[328474649,1717426240036,-740.356563,0.0002783,2]
[328474652,1717426240045,-158.56739487,0.00027836,2]
[328474653,1717426240055,-1062.86898591,0.0002784,2]
[328474655,1717426240065,-154.11931949,0.00027994,2]
[328474657,1717426240074,-154.11931949,0.00027995,2]
[328474659,1717426240084,-1279.88903793,0.00027998,2]
[328474662,1717426240093,-521.15105648,0.00027999,2]
[328474664,1717426240103,-261.12764027,0.00028,2]
[328474666,1717426240112,-9498.42860655,0.00028,2]
[328474667,1717426240123,-4781.0,0.00028,2]
[328474670,1717426240133,-151.0,0.00028,2]
[328474672,1717426240142,-160.499745,0.00028,2]
[328474674,1717426240152,-160.499745,0.00028,2]
[328474675,1717426240161,-151.0,0.00028,2]
[328474677,1717426240170,-151.0,0.00028,2]
[328474679,1717426240180,-740.356563,0.00028,2]
[328474681,1717426240189,-272.373144,0.00028,2]
[328474683,1717426240198,-272.373144,0.00028,2]
[328474685,1717426240207,-740.356563,0.00028,2]
[328474687,1717426240217,-253.74198634,0.00028,2]
[328474689,1717426240226,-752.96261549,0.00028,2]
[328474692,1717426240236,-18971.84584658,0.00028,2]
[328474911,1717426242385,-500.0,0.00020202,2]
[328474913,1717426242394,-150.42013146,0.0002563,2]
[328474915,1717426242404,-6209.57986854,0.00028,2]
[328474917,1717426242416,-9960.65637528,0.00028,2]
[328474936,1717426242592,-702.06316023,0.00028,2]
[328474939,1717426242607,-280.94195353,0.00028,2]
[328474941,1717426242618,-4303.18712565,0.00028,2]
[328474943,1717426242632,-14117.74388345,0.00028,2]
[328474946,1717426242645,-5246.23467093,0.00028,2]
[328474948,1717426242661,-2614.02553849,0.00028,2]
[328474951,1717426242676,-43366.80878148,0.00028,2]
[328474953,1717426242685,-158.56739487,0.00028029,2]
[328474955,1717426242694,-151.0,0.00028431,7]
[328474957,1717426242703,-151.0,0.00028431,7]
[328474959,1717426242712,-160.45,0.000285,3]
[328474961,1717426242722,-160.45,0.000285,3]
[328474963,1717426242732,-160.45,0.000285,3]
[328474965,1717426242742,-160.45,0.000285,3]
[328474978,1717426242861,-160.45,0.000285,3]
[328474980,1717426242871,-160.45,0.000285,3]
[328474982,1717426242880,-160.45,0.000285,3]
[328474984,1717426242890,-160.45,0.000285,3]
[328474986,1717426242899,-160.45,0.000285,3]
[328474988,1717426242909,-160.45,0.000285,3]
[328474990,1717426242919,-160.45,0.000285,3]
[328474992,1717426242929,-160.45,0.000285,3]
[328474994,1717426242939,-160.45,0.000285,3]
[328474996,1717426242949,-160.45,0.000285,3]
[328474998,1717426242959,-160.45,0.000285,3]
[328475000,1717426242968,-160.45,0.000285,3]
[328475002,1717426242978,-160.45,0.000285,3]
[328475004,1717426242987,-160.45,0.000285,3]
[328475006,1717426242997,-160.45,0.000285,3]
[328475008,1717426243007,-160.45,0.000285,3]
[328475011,1717426243017,-158.56739487,0.00028549,2]
[328475013,1717426243026,-4230.52943513,0.00028576,2]
[328475015,1717426243036,-154.11931949,0.00028736,2]
[328475016,1717426243046,-423.33361,0.00028796,2]
[328475019,1717426243056,-500.0,0.00028796,2]
[328475021,1717426243065,-500.0,0.00028796,2]
[328475023,1717426243076,-151.305901,0.00028797,2]
[328475025,1717426243085,-158.56739487,0.00028937,2]
[328475027,1717426243094,-3603.80712053,0.00028967,2]
[328475028,1717426243104,-151.0,0.00028967,2]
[328475030,1717426243113,-151.0,0.00028967,2]
[328475032,1717426243124,-151.0,0.00028967,2]
[328475035,1717426243134,-156.75423754,0.00028968,2]
[328475036,1717426243143,-2110.18642515,0.00028969,2]
[328475038,1717426243153,-1315.4253657,0.00028988,2]
[328475039,1717426243163,-157.13468764,0.00028988,2]
[328475041,1717426243173,-2483.71128048,0.00028988,2]
[328475043,1717426243183,-2830.62157862,0.00028988,2]
[328475047,1717426243193,-377.3169249,0.00028989,2]
[328475049,1717426243203,-500.0,0.00028989,2]
[328475052,1717426243213,-396.98332072,0.00028989,2]
[328475055,1717426243229,-103.01667928,0.00028989,2]
[328475058,1717426243239,-500.0,0.00028989,2]
[328475061,1717426243248,-6066.05232129,0.0002899,2]
[328475064,1717426243260,-378.79359255,0.0002899,2]
[328475068,1717426243271,-261.546,0.0002899,2]
[328475920,1717426390700,156.98418007,0.00015,2]
[328475938,1717427140121,-156.98418007,0.00018757,2]
[328475939,1717427140144,-1051.91749001,0.00018758,2]
[328475941,1717427233119,-157.56331572,0.00018757,2]
[328475942,1717427233140,-296.50540937,0.00018758,2]
[328475943,1717427237094,-310.34909067,0.00018758,2]
[328475944,1717427239157,-172.28512439,0.00018758,2]
[328475945,1717427242107,-585.79288858,0.00018758,2]
[328475946,1717427242154,-292.89644429,0.00018758,2]
[328475947,1717427247108,-1609.86044721,0.00018758,2]
[328475948,1717427248098,-302.0,0.00018758,2]
[328475949,1717427350095,-250.0,0.00018181,2]
[328475950,1717427350117,-157.4401901,0.00018658,2]
[328475951,1717427350138,-54897.71240462,0.00018758,2]
[328475952,1717427350160,-8853.76481214,0.00018758,2]
[328475953,1717427350181,-24900.0,0.00018759,2]
[328475954,1717427350202,-836.307233,0.000189,2]
[328475955,1717427350222,-297.691553,0.00018917,2]
[328475956,1717427350245,-500.0,0.00019178,2]
[328475957,1717427350270,-382.36864124,0.00019178,2]
[328475958,1717427350294,-598.85,0.00019665,2]
[328475959,1717427350316,-500.0,0.00019665,2]
[328475960,1717427350348,-500.0,0.00019665,2]
[328475961,1717427350375,-585.77,0.00019665,2]
[328475962,1717427350397,-46530.0,0.00019666,2]
[328475963,1717427350420,-500.0,0.00019939,2]
[328475964,1717427350443,-165.81707991,0.00020198,2]
[328475965,1717427350465,-391.75355443,0.00020198,2]
[328475966,1717427350487,-648.859804,0.00020198,2]
[328475967,1717427350511,-500.0,0.00020198,2]
[328475968,1717427350540,-334.31816256,0.00020198,2]
[328475969,1717427350563,-203.20284503,0.00020198,2]
[328475970,1717427350586,-500.0,0.00020198,2]
[328475971,1717427350609,-500.0,0.00020198,2]
[328475972,1717427350632,-500.0,0.00020198,2]
[328475973,1717427350654,-500.0,0.00020198,2]
[328475974,1717427350677,-500.0,0.00020198,2]
[328475975,1717427350700,-269.63832727,0.00020198,2]
[328475976,1717427350722,-500.0,0.000202,2]
[328475977,1717427350743,-500.0,0.000202,2]
[328475978,1717427350766,-500.0,0.000202,2]
[328475979,1717427350790,-527.3175316,0.000202,2]
[328475980,1717427350812,-474.28512439,0.000202,2]
[328475981,1717427350837,-500.0,0.000202,2]
[328475982,1717427350863,-500.0,0.000202,2]
[328475983,1717427350886,-500.0,0.000202,2]
[328475984,1717427350906,-500.0,0.000202,2]
[328475985,1717427350928,-500.0,0.000202,2]
[328475986,1717427350958,-500.0,0.000202,2]
[328475987,1717427350979,-500.0,0.000202,2]
[328475988,1717427351000,-500.0,0.000202,2]
[328475989,1717427351024,-500.0,0.000202,2]
[328475990,1717427351044,-500.0,0.000202,2]
[328475991,1717427351065,-500.0,0.000202,2]
[328475992,1717427351086,-500.0,0.000202,2]
[328475993,1717427351107,-500.0,0.000202,2]
[328475994,1717427351127,-500.0,0.000202,2]
[328475995,1717427351153,-500.0,0.000202,2]
[328475996,1717427351174,-500.0,0.000202,2]
[328475997,1717427351195,-500.0,0.000202,2]
[328475998,1717427351217,-559.98,0.000202,2]
[328475999,1717427351238,-500.0,0.000202,2]
[328476000,1717427351259,-500.0,0.000202,2]
[328476001,1717427351280,-500.0,0.000202,2]
[328476002,1717427351301,-311.9915699,0.000202,2]
[328476003,1717427351322,-500.0,0.000202,2]
[328476004,1717427351346,-500.0,0.000202,2]
[328476005,1717427351367,-500.0,0.000202,2]
[328476006,1717427351391,-500.0,0.000202,2]
[328476007,1717427351413,-500.0,0.000202,2]
[328476008,1717427351444,-500.0,0.000202,2]
[328476009,1717427351472,-500.0,0.000202,2]
[328476010,1717427351500,-500.0,0.000202,2]
[328476011,1717427351525,-500.0,0.000202,2]
[328476012,1717427351547,-500.0,0.000202,2]
[328476013,1717427351573,-531.21968518,0.000202,2]
[328476014,1717427351597,-500.0,0.000202,2]
[328476015,1717427351622,-500.0,0.000202,2]
[328476016,1717427351646,-500.0,0.000202,2]
[328476017,1717427351671,-546.61,0.000202,2]
[328476018,1717427351695,-500.0,0.000202,2]
[328476019,1717427351721,-237.36289791,0.000202,2]
[328476020,1717427351745,-515.67,0.000202,2]
[328476021,1717427351769,-500.0,0.000202,2]
[328476022,1717427351794,-520.56,0.000202,2]
[328476023,1717427351817,-500.0,0.000202,2]
[328476024,1717427351841,-500.0,0.00020201,2]
[328476025,1717427351864,-500.0,0.00020202,2]
[328476026,1717427351889,-500.0,0.00020202,2]
[328476027,1717427351913,-500.0,0.00020202,2]
[328476028,1717427351937,-500.0,0.00020202,2]
[328476029,1717427351960,-216.83648506,0.00020202,2]
[328476030,1717427351981,-500.0,0.00020202,2]
[328476031,1717427352003,-500.0,0.00020202,2]
[328476032,1717427352031,-500.0,0.00020202,2]
[328476033,1717427352054,-500.0,0.00020202,2]
[328476034,1717427352078,-500.0,0.00020202,2]
[328476035,1717427352102,-500.0,0.00020202,2]
[328476036,1717427352126,-500.0,0.00020202,2]
[328476037,1717427352151,-500.0,0.00020202,2]
[328476038,1717427352176,-500.0,0.00020202,2]
[328476039,1717427352202,-500.0,0.00020202,2]
[328476040,1717427352225,-500.0,0.00020202,2]
[328476041,1717427352247,-286.41,0.00020202,2]
[328476042,1717427352268,-500.0,0.00020202,2]
[328476043,1717427352294,-500.0,0.00020202,2]
[328476044,1717427352319,-293.02415626,0.00020202,2]
[328476045,1717427352343,-628.29,0.00020202,2]
[328476046,1717427352367,-501.92052098,0.00020202,2]
[328476047,1717427352391,-504.03311653,0.00020202,2]
[328476048,1717427352414,-573.45,0.00020202,2]
[328476049,1717427352438,-500.0,0.00020202,2]
[328476050,1717427352461,-500.0,0.00020202,2]
[328476051,1717427352485,-500.0,0.00020202,2]
[328476052,1717427352507,-500.0,0.00020202,2]
[328476053,1717427352531,-500.0,0.00020202,2]
[328476054,1717427352553,-500.0,0.00020202,2]
[328476055,1717427352576,-500.0,0.00020202,2]
[328476056,1717427352599,-500.0,0.00020202,2]
[328476057,1717427352622,-582.47319484,0.00020202,2]
[328476058,1717427352648,-500.0,0.00020202,2]
[328476059,1717427352675,-500.0,0.00020202,2]
[328476060,1717427352703,-509.558092,0.00020202,2]
[328476061,1717427352731,-290.33,0.00020474,2]
[328476062,1717427352756,-503.94,0.00020474,2]
[328476063,1717427352782,-356.75,0.00020474,2]
[328476064,1717427352806,-181.07,0.00020474,2]
[328476065,1717427352843,-500.0,0.00020474,2]
[328476066,1717427352874,-500.0,0.00020474,2]
[328476067,1717427352900,-484.18,0.00020474,2]
[328476068,1717427352925,-500.0,0.00020474,2]
[328476069,1717427352956,-500.0,0.00020474,2]
[328476070,1717427352984,-425.56,0.00020474,2]
[328476071,1717427353009,-500.0,0.00020474,2]
[328476072,1717427353038,-500.0,0.00020474,2]
[328476073,1717427353062,-207.15,0.00020474,2]
[328476074,1717427353087,-500.0,0.00020474,2]
[328476075,1717427353112,-468.06,0.00020474,2]
[328476076,1717427353297,-500.0,0.00020476,2]
[328476077,1717427353318,-627.66,0.00020476,2]
[328476078,1717427353339,-522.53898558,0.00020476,2]
[328476079,1717427353360,-500.0,0.00020476,2]
[328476080,1717427353382,-500.0,0.00020476,2]
[328476081,1717427353403,-500.0,0.00020476,2]
[328476082,1717427353425,-500.0,0.00020476,2]
[328476083,1717427353446,-186.28,0.00020476,2]
[328476084,1717427353467,-500.0,0.00020476,2]
[328476085,1717427353488,-637.15,0.00020476,2]
[328476086,1717427353509,-500.0,0.00020476,2]
[328476087,1717427353531,-180.23799225,0.00020476,2]
[328476088,1717427353552,-157.44019008,0.00020706,2]
[328476089,1717427353571,-605.9,0.00020748,2]
[328476090,1717427353591,-500.0,0.00020748,2]
[328476091,1717427353612,-500.0,0.00020748,2]
[328476092,1717427353634,-500.0,0.00020748,2]
[328476093,1717427353656,-500.0,0.00020748,2]
[328476094,1717427353677,-500.0,0.00020748,2]
[328476095,1717427353698,-500.0,0.00020748,2]
[328476096,1717427353719,-330.97,0.00020748,2]
[328476097,1717427353740,-424.13,0.0002075,2]
[328476098,1717427353761,-355.55,0.0002075,2]
[328476099,1717427353782,-575.57,0.0002075,2]
[328476100,1717427353804,-500.0,0.0002075,2]
[328476101,1717427353825,-461.8,0.0002075,2]
[328476102,1717427353847,-610.89,0.00021022,2]
[328476103,1717427353868,-500.0,0.00021022,2]
[328476104,1717427353888,-468.54,0.00021022,2]
[328476105,1717427353910,-500.0,0.00021022,2]
[328476106,1717427353931,-500.0,0.00021022,2]
[328476107,1717427353956,-500.0,0.00021022,2]
[328476108,1717427353978,-500.0,0.00021024,2]
[328476109,1717427353998,-164.47,0.00021296,2]
[328476110,1717427354020,-178.04,0.00021296,2]
[328476111,1717427354043,-500.0,0.00021296,2]
[328476112,1717427354063,-500.0,0.00021298,2]
[328476113,1717427354084,-500.0,0.0002157,2]
[328476114,1717427354114,-15732.29287843,0.00021572,7]
[328476115,1717427354134,-287.16,0.00021572,2]
[328476116,1717427354155,-500.0,0.00021699,2]
[328476117,1717427354175,-500.0,0.00021746,2]
[328476118,1717427354195,-500.0,0.00021746,2]
[328476119,1717427354217,-500.0,0.00021844,2]
[328476120,1717427354239,-166.666666,0.00021918,2]
[328476121,1717427354261,-500.0,0.00022118,2]
[328476122,1717427354283,-542.38399246,0.00022392,2]
[328476123,1717427354305,-157.44019008,0.00022755,2]
[328476124,1717427354327,-500.0,0.00023214,2]
[328476125,1717427354349,-500.0,0.00023762,2]
[328476126,1717427354371,-836.307233,0.000239,2]
[328476127,1717427354392,-500.0,0.00024036,2]
[328476128,1717427354414,-157.44019008,0.00024803,2]
[328476129,1717427354436,-500.0,0.00024999,2]
[328476130,1717427354457,-448.31920513,0.00025,2]
[328476131,1717427354481,-500.0,0.00025587,2]
[328476132,1717427354502,-29400.77984578,0.00025598,2]
[328476133,1717427354523,-1196.52564918,0.00025599,30]
[328476134,1717427354786,-11930.69579645,0.00025599,30]
[328476135,1717427354807,-166.666666,0.00026,2]
[328476136,1717427369085,1316.04256424,0.00025204,2]
[328476137,1717427373156,317.15969073,9.999e-05,2]
[328476141,1717427399219,166.666666,0.00026,2]
[328476142,1717427419349,500.0,0.00019665,2]
[328476143,1717427419631,422.44123809,0.000202,2]
[328476144,1717427420918,156.98418007,0.00025204,2]
[328476185,1717427433174,-2034.77313841,0.00026363,2]
[328476189,1717427433184,-2088.1636089,0.00026364,2]
[328476191,1717427433194,-4930.82484395,0.00026574,2]
[328476194,1717427433203,-226.77,0.000266,3]
[328476198,1717427433212,-226.77,0.000266,3]
[328476201,1717427433221,-226.77,0.000266,3]
[328476204,1717427433231,-226.77,0.000266,3]
[328476207,1717427433241,-226.77,0.000266,3]
[328476210,1717427433251,-226.77,0.000266,3]
[328476213,1717427433261,-226.77,0.000266,3]
[328476216,1717427433271,-226.77,0.000266,3]
[328476218,1717427433281,-226.77,0.000266,3]
[328476220,1717427433291,-226.77,0.000266,3]
[328476223,1717427433301,-226.77,0.000266,3]
[328476225,1717427433310,-226.77,0.000266,3]
[328476226,1717427433320,-226.77,0.000266,3]
[328476228,1717427433330,-226.77,0.000266,3]
[328476230,1717427433339,-226.77,0.000266,3]
[328476232,1717427433349,-226.77,0.000266,3]
[328476234,1717427433362,-226.77,0.000266,3]
[328476237,1717427433371,-226.77,0.000266,3]
[328476239,1717427433382,-226.77,0.000266,3]
[328476241,1717427433391,-226.77,0.000266,3]
[328476242,1717427433401,-187.5,0.00026849,2]
[328476244,1717427433416,-712.5,0.00026849,2]
[328476246,1717427433425,-157.44019008,0.00026852,2]
[328476249,1717427433436,-550.57843707,0.000269,30]
[328476251,1717427433446,-550.57843707,0.00026924,30]
[328476253,1717427433456,-550.57843707,0.00026942,30]
[328476254,1717427433467,-550.57843707,0.00026956,30]
[328476257,1717427433479,-550.57843707,0.00026968,30]
[328476259,1717427433491,-550.57843707,0.00026969,30]
[328476260,1717427433504,-550.57843707,0.00026982,30]
[328476263,1717427433515,-380.66574335,0.00027082,2]
[328476264,1717427433525,-380.66574335,0.00027135,2]
[328476267,1717427433535,-166.12962343,0.00027173,2]
[328476268,1717427433545,-151.0,0.00027314,7]
[328476270,1717427433554,-226.77,0.000275,3]
[328476272,1717427433563,-226.77,0.000275,3]
[328476275,1717427433573,-226.77,0.000275,3]
[328476276,1717427433582,-226.77,0.000275,3]
[328476278,1717427433592,-226.77,0.000275,3]
[328476280,1717427433603,-226.77,0.000275,3]
[328476283,1717427433613,-226.77,0.000275,3]
[328476285,1717427433623,-226.77,0.000275,3]
[328476286,1717427433632,-226.77,0.000275,3]
[328476289,1717427433642,-226.77,0.000275,3]
[328476291,1717427433651,-226.77,0.000275,3]
[328476292,1717427433660,-226.77,0.000275,3]
[328476295,1717427433670,-226.77,0.000275,3]
[328476296,1717427433680,-226.77,0.000275,3]
[328476299,1717427433690,-226.77,0.000275,3]
[328476301,1717427433699,-226.77,0.000275,3]
[328476303,1717427433709,-226.77,0.000275,3]
[328476305,1717427433718,-226.77,0.000275,3]
[328476307,1717427433728,-226.77,0.000275,3]
[328476309,1717427433738,-226.77,0.000275,3]
[328476311,1717427433747,-380.66574335,0.00027523,2]
[328476313,1717427433757,-299.22728336,0.00027548,2]
[328476315,1717427433766,-380.66574335,0.00027571,2]
[328476317,1717427433776,-166.12962343,0.00027675,2]
[328476319,1717427433787,-380.66574335,0.00027712,2]
[328476321,1717427433796,-166.12962343,0.00027746,2]
[328476323,1717427433806,-166.12962343,0.00027784,2]
[328476325,1717427433815,-600.0,0.0002784,2]
[328476327,1717427433824,-151.0,0.00027876,7]
[328476329,1717427433833,-166.12962343,0.00027877,2]
[328476331,1717427433844,-2000.0,0.000279,2]
[328476333,1717427433854,-380.66574335,0.00027989,2]
[328476335,1717427433862,-380.66574335,0.00027997,2]
[328476337,1717427433872,-9498.42860655,0.00028,2]
[328476339,1717427433881,-154.9690062,0.00028,2]
[328476341,1717427433891,-481.85172394,0.00028,2]
[328476343,1717427433900,-253.74198634,0.00028,2]
[328476345,1717427433910,-752.96261549,0.00028019,2]
[328476347,1717427433920,-380.66574335,0.0002802,2]
[328476349,1717427433929,-380.66574335,0.00028025,2]
[328476351,1717427433939,-600.0,0.0002813,2]
[328476353,1717427433948,-380.66574335,0.0002825,2]
[328476355,1717427433958,-153.12327169,0.0002825,2]
[328476357,1717427433969,-583.7461814,0.00028289,2]
[328476359,1717427433979,-380.66574335,0.00028299,2]
[328476361,1717427433990,-226.77,0.000283,3]
[328476363,1717427433999,-226.77,0.000283,3]
[328476365,1717427434009,-226.77,0.000283,3]
[328476367,1717427434018,-226.77,0.000283,3]
[328476369,1717427434028,-226.77,0.000283,3]
[328476371,1717427434038,-226.77,0.000283,3]
[328476373,1717427434048,-226.77,0.000283,3]
[328476374,1717427434058,-226.77,0.000283,3]
[328476377,1717427434068,-226.77,0.000283,3]
[328476378,1717427434078,-226.77,0.000283,3]
[328476381,1717427434088,-226.77,0.000283,3]
[328476383,1717427434099,-226.77,0.000283,3]
[328476385,1717427434110,-226.77,0.000283,3]
[328476387,1717427434120,-226.77,0.000283,3]
[328476389,1717427434131,-226.77,0.000283,3]
[328476391,1717427434141,-226.77,0.000283,3]
[328476393,1717427434151,-226.77,0.000283,3]
[328476395,1717427434161,-226.77,0.000283,3]
[328476397,1717427434171,-226.77,0.000283,3]
[328476399,1717427434180,-226.77,0.000283,3]
[328476401,1717427434190,-166.12962343,0.00028417,2]
[328476403,1717427434199,-151.0,0.00028438,7]
[328476405,1717427434208,-151.0,0.00028438,7]
[328476407,1717427434218,-166.12962343,0.00028439,2]
[328476409,1717427434227,-380.66574335,0.00028441,2]
[328476411,1717427434236,-380.66574335,0.00028486,2]
[328476413,1717427434246,-380.66574335,0.0002851,2]
[328476415,1717427434256,-380.66574335,0.00028537,2]
[328476417,1717427434266,-380.66574335,0.00028562,2]
[328476419,1717427434277,-380.66574335,0.00028616,2]
[328476421,1717427434286,-3277.15554071,0.0002888,3]
[328476441,1717427434470,-1744.96445929,0.0002888,3]
[328476443,1717427434479,-6902.18,0.0002888,3]
[328476445,1717427434489,-1221.25276958,0.0002888,3]
[328476994,1717427440082,-4530.56723042,0.0002888,3]
[328476996,1717427440091,-153.74860021,0.00028881,2]
[328476998,1717427440100,-278.08277314,0.00028889,2]
[328477000,1717427440110,-301.37264787,0.00028889,2]
[328477002,1717427440119,-500.0,0.00028889,2]
[328477004,1717427440128,-500.0,0.00028889,2]
[328477006,1717427440137,-588.54947876,0.00028889,2]
[328477008,1717427440148,-330.89149818,0.00028889,2]
[328477010,1717427440157,-244.13594743,0.00028889,2]
[328477012,1717427440166,-602.41706037,0.00028889,2]
[328477014,1717427440176,-191.550583,0.0002889,2]
[328477030,1717427440311,-191.550583,0.0002889,2]
[328477032,1717427440321,-151.0,0.0002889,2]
[328477034,1717427440331,-151.0,0.0002889,2]
[328477036,1717427440341,-151.0,0.0002889,2]
[328477038,1717427440352,-151.0,0.0002889,2]
[328477040,1717427440364,-217.898515,0.0002889,2]